bitfinex/quotes_BTCUSD_20250213
["timestamp","ask_amount","ask_price","bid_price","bid_amount"]
[1739437508710,1.3e-07,96184.0,96183.0,0.305952]
[1739437508952,1.3e-07,96184.0,96183.0,1.17945172]
[1739437509918,0.30000013,96184.0,96183.0,1.02349972]
[1739437510317,0.30655543,96184.0,96183.0,1.02349972]
[1739437510540,0.30655543,96184.0,96183.0,1.17945172]
[1739437510751,0.30655543,96184.0,96183.0,1.18045172]
[1739437510941,0.30000013,96184.0,96183.0,1.18045172]
[1739437512076,0.30000013,96184.0,96183.0,1.25675172]
[1739437514501,1.3e-07,96184.0,96183.0,1.25675172]
[1739437515007,0.30000013,96184.0,96183.0,1.25675172]
[1739437515224,1.3e-07,96184.0,96183.0,1.25575172]
[1739437515642,1.3e-07,96184.0,96183.0,1.25675172]
[1739437515997,1.3e-07,96184.0,96183.0,1.25575172]
[1739437517994,1.3e-07,96184.0,96183.0,1.25675172]
[1739437518194,1.3e-07,96184.0,96183.0,1.27746068]
[1739437518399,1.3e-07,96184.0,96183.0,1.32716068]
[1739437521202,1.3e-07,96184.0,96183.0,1.35016068]
[1739437522237,1.3e-07,96184.0,96183.0,1.45266433]
[1739437522444,0.0001064,96200.0,96184.0,0.023]
[1739437522644,0.0001064,96200.0,96199.0,0.302626]
[1739437522645,0.00023837,96200.0,96199.0,0.302626]
[1739437522853,0.00023837,96200.0,96199.0,0.31301971]
[1739437523777,0.00023837,96200.0,96199.0,0.31401971]
[1739437523970,0.00023837,96200.0,96199.0,0.29101971]
[1739437525283,0.00023837,96200.0,96199.0,0.46401971]
[1739437525715,0.00023837,96200.0,96199.0,0.48480604]
[1739437527343,0.00023837,96200.0,96199.0,0.46180604]
[1739437527697,0.00696446,96200.0,96199.0,0.46180604]
[1739437527901,0.00696446,96200.0,96199.0,0.16139371]
[1739437528101,0.00696446,96200.0,96199.0,0.001]
[1739437528303,0.00696446,96200.0,96199.0,0.87449972]
[1739437528513,0.00023837,96200.0,96199.0,0.87449972]
[1739437529144,0.00023837,96200.0,96199.0,0.87549972]
[1739437529694,0.00023837,96200.0,96199.0,0.87449972]
[1739437530530,0.16294517,96200.0,96199.0,0.32799972]
[1739437530940,0.00702017,96200.0,96199.0,0.32799972]
[1739437531148,0.16294517,96200.0,96199.0,0.32799972]
[1739437531726,0.26544882,96200.0,96199.0,0.32799972]
[1739437533754,0.26544882,96200.0,96199.0,0.32699972]
[1739437534868,0.10952382,96200.0,96199.0,0.32699972]
[1739437535066,0.26544882,96200.0,96199.0,0.32699972]
[1739437535445,0.27944882,96200.0,96199.0,0.32699972]
[1739437538590,0.27944882,96200.0,96183.0,0.00022365]
[1739437538591,0.3,96185.0,96184.0,0.32699972]
[1739437538790,0.455949,96185.0,96184.0,0.33523972]
[1739437539045,0.46262415,96185.0,96184.0,0.32699972]
[1739437539211,0.30667515,96185.0,96184.0,0.32699972]
[1739437539581,0.30667515,96185.0,96184.0,0.33746766]
[1739437539789,0.31567515,96185.0,96184.0,0.33846766]
[1739437540516,0.31567515,96185.0,96184.0,0.32799972]
[1739437540733,0.5741278,96185.0,96184.0,0.32799972]
[1739437542545,0.5651278,96185.0,96184.0,0.32699972]
[1739437542727,0.4221788,96185.0,96184.0,0.32799972]
[1739437542924,0.4241788,96185.0,96184.0,0.32799972]
[1739437543162,0.4221788,96185.0,96184.0,0.32799972]
[1739437543365,0.4111788,96185.0,96184.0,0.32699972]
[1739437543660,0.4241788,96185.0,96184.0,0.32799972]
[1739437544654,0.5801278,96185.0,96184.0,0.32799972]
[1739437546236,0.4241788,96185.0,96184.0,0.32799972]
[1739437546435,0.5801278,96185.0,96184.0,0.32799972]
[1739437546978,0.4241788,96185.0,96184.0,0.32799972]
[1739437547312,0.5801278,96185.0,96184.0,0.32799972]
[1739437550183,0.4241788,96185.0,96184.0,0.32799972]
[1739437550519,0.5801278,96185.0,96184.0,0.32799972]
[1739437551844,0.4241788,96185.0,96184.0,0.32799972]
[1739437553988,0.4241788,96185.0,96184.0,0.48395072]
[1739437553989,0.32167515,96185.0,96184.0,0.48395072]
[1739437555380,0.32167515,96185.0,96184.0,0.32799972]
[1739437555990,0.5801278,96185.0,96184.0,0.32799972]
[1739437558468,0.5801278,96185.0,96184.0,0.32816273]
[1739437559274,0.5802343,96185.0,96184.0,0.32816273]
[1739437562105,0.5802343,96185.0,96184.0,0.00116301]
[1739437562434,0.5802343,96185.0,96183.0,0.00022365]
[1739437562435,0.212551,96184.0,96183.0,0.00022365]
[1739437562633,0.53247,96172.0,96160.0,0.00022365]
[1739437562888,0.63497365,96172.0,96160.0,0.00022365]
[1739437563126,0.64151977,96172.0,96160.0,0.00022365]
[1739437565042,0.66151977,96172.0,96171.0,0.00122365]
[1739437565876,0.64151977,96172.0,96171.0,0.00022365]
[1739437566081,0.64851977,96172.0,96171.0,0.00122365]
[1739437566513,0.64151977,96172.0,96171.0,0.00022365]
[1739437566709,0.64851977,96172.0,96171.0,0.00122365]
[1739437567727,0.66351977,96172.0,96171.0,0.00122365]
[1739437568129,0.64851977,96172.0,96171.0,0.00122365]
[1739437568514,0.66351977,96172.0,96171.0,0.00122365]
[1739437569019,0.64151977,96172.0,96171.0,0.00022365]
[1739437569219,0.65551977,96172.0,96171.0,0.00122365]
[1739437569421,0.66151977,96172.0,96171.0,0.00122365]
[1739437569661,0.66151977,96172.0,96171.0,0.00022365]
[1739437569880,0.66751977,96172.0,96171.0,0.00122365]
[1739437570707,0.59101977,96172.0,96171.0,0.00122365]
[1739437571128,0.57901977,96172.0,96171.0,0.00022365]
[1739437571419,0.56501977,96172.0,96171.0,0.00122365]
[1739437571712,0.58501977,96172.0,96171.0,0.00022365]
[1739437572051,0.59101977,96172.0,96171.0,0.00122365]
[1739437572252,0.58501977,96172.0,96171.0,0.00022365]
[1739437572519,0.57101977,96172.0,96171.0,0.00022365]
[1739437572730,0.59101977,96172.0,96171.0,0.00122365]
[1739437572944,0.58501977,96172.0,96171.0,0.00022365]
[1739437574324,0.59101977,96172.0,96171.0,0.00122365]
[1739437574719,0.57901977,96172.0,96171.0,0.00022365]
[1739437574950,0.56501977,96172.0,96171.0,0.00122365]
[1739437575150,0.58501977,96172.0,96171.0,0.00122365]
[1739437575324,0.58501977,96172.0,96171.0,0.00022365]
[1739437575521,0.59101977,96172.0,96171.0,0.00122365]
[1739437578652,0.43504977,96172.0,96171.0,0.00122365]
[1739437578853,0.33254612,96172.0,96171.0,0.48419537]
[1739437579055,0.33254612,96172.0,96171.0,0.53239537]
[1739437579446,0.33254612,96172.0,96171.0,0.37642337]
[1739437579654,0.312,96172.0,96171.0,0.37642337]
[1739437580063,0.33138289,96172.0,96171.0,0.37642337]
[1739437580540,0.31938289,96172.0,96171.0,0.37542337]
[1739437581070,0.32438289,96172.0,96171.0,0.37542337]
[1739437581680,0.48035289,96172.0,96171.0,0.37542337]
[1739437581902,0.32438289,96172.0,96171.0,0.37542337]
[1739437583269,0.48035289,96172.0,96171.0,0.37542337]
[1739437583878,0.58285654,96172.0,96171.0,0.32722337]
[1739437585089,0.59313063,96172.0,96171.0,0.32722337]
[1739437585527,0.59313063,96172.0,96171.0,0.00022365]
[1739437586085,0.58285654,96172.0,96171.0,0.00022365]
[1739437586689,0.57785654,96172.0,96171.0,0.00022365]
[1739437587069,0.58485654,96172.0,96171.0,0.00122365]
[1739437587988,0.57085654,96172.0,96171.0,0.00122365]
[1739437588446,0.57885654,96172.0,96171.0,0.00022365]
[1739437588654,0.58585654,96172.0,96171.0,0.00122365]
[1739437588798,0.57085654,96172.0,96171.0,0.00122365]
[1739437589212,0.58585654,96172.0,96171.0,0.00122365]
[1739437589854,0.42288654,96172.0,96171.0,0.00022365]
[1739437590048,0.57885654,96172.0,96171.0,0.00022365]
[1739437590299,0.58585654,96172.0,96171.0,0.00122365]
[1739437600496,0.68836019,96172.0,96171.0,0.00122365]
[1739437600933,0.69859067,96172.0,96171.0,0.00122365]
[1739437601100,0.59608702,96172.0,96171.0,0.00122365]
[1739437601930,0.58585654,96172.0,96171.0,0.00122365]
[1739437624813,0.42988654,96172.0,96171.0,0.00122365]
[1739437625183,0.42988654,96172.0,96171.0,0.15719565]
[1739437625421,0.42988654,96172.0,96171.0,0.00122365]
[1739437626107,0.42288654,96172.0,96171.0,0.01061623]
[1739437626333,0.57885654,96172.0,96171.0,0.01061623]
[1739437626541,0.58385654,96172.0,96171.0,0.33761595]
[1739437626931,0.56885654,96172.0,96171.0,0.33761595]
[1739437627175,0.41288654,96172.0,96171.0,0.57588795]
[1739437627348,0.42688654,96172.0,96171.0,0.57588795]
[1739437627521,0.42688654,96172.0,96171.0,0.41991595]
[1739437627701,0.58285654,96172.0,96171.0,0.41991595]
[1739437627903,0.57747365,96172.0,96171.0,0.41991595]
[1739437628107,0.58323283,96172.0,96171.0,0.41991595]
[1739437628311,0.42726283,96172.0,96171.0,0.41991595]
[1739437628513,0.58323283,96172.0,96171.0,0.41991595]
[1739437630618,0.42726283,96172.0,96171.0,0.41991595]
[1739437630757,0.32475918,96172.0,96171.0,0.57588795]
[1739437631573,0.32475918,96172.0,96171.0,0.41991595]
[1739437631793,0.319,96172.0,96171.0,0.57588795]
[1739437631994,0.32476818,96172.0,96171.0,0.41991595]
[1739437632175,0.48073818,96172.0,96171.0,0.41991595]
[1739437632694,0.58324183,96172.0,96171.0,0.41991595]
[1739437634275,0.42727183,96172.0,96171.0,0.41991595]
[1739437636087,0.42727183,96172.0,96171.0,0.57588795]
[1739437636448,0.42150365,96172.0,96171.0,0.57588795]
[1739437636740,0.4272761,96172.0,96171.0,0.57588795]
[1739437636990,0.4132761,96172.0,96171.0,0.57588795]
[1739437637188,0.4222761,96172.0,96171.0,0.57588795]
[1739437637540,0.4252761,96172.0,96171.0,0.57588795]
[1739437637745,0.4112761,96172.0,96171.0,0.57588795]
[1739437637960,0.4222761,96172.0,96171.0,0.57588795]
[1739437638352,0.4112761,96172.0,96171.0,0.41991595]
[1739437638781,0.4222761,96172.0,96171.0,0.41991595]
[1739437639344,0.4192761,96172.0,96171.0,0.41991595]
[1739437639691,0.4212761,96172.0,96171.0,0.41991595]
[1739437639887,0.4102761,96172.0,96171.0,0.41991595]
[1739437640132,0.4132761,96172.0,96171.0,0.41991595]
[1739437640652,0.32077245,96172.0,96171.0,0.57588795]
[1739437640861,0.32577245,96172.0,96171.0,0.41991595]
[1739437641061,0.47874245,96172.0,96171.0,0.41991595]
[1739437641263,0.46674245,96172.0,96171.0,0.41991595]
[1739437641469,0.5692461,96172.0,96171.0,0.41991595]
[1739437641672,0.5812461,96172.0,96171.0,0.41991595]
[1739437642097,0.4252761,96172.0,96171.0,0.41991595]
[1739437642308,0.5842461,96172.0,96171.0,0.41991595]
[1739437642649,0.5762461,96172.0,96171.0,0.41991595]
[1739437642895,0.5792461,96172.0,96171.0,0.41991595]
[1739437643981,0.4232761,96172.0,96171.0,0.41991595]
[1739437644378,0.4232761,96172.0,96171.0,0.57588795]
[1739437644689,0.41750365,96172.0,96171.0,0.57588795]
[1739437644920,0.315,96172.0,96171.0,0.57588795]
[1739437645076,0.02078633,96172.0,96171.0,0.57588795]
[1739437645273,0.02078633,96172.0,96171.0,1.12238795]
[1739437645570,0.01778633,96172.0,96171.0,1.31938795]
[1739437645769,0.014,96172.0,96171.0,1.31938795]
[1739437646004,0.002,96172.0,96171.0,1.31938795]
[1739437646404,0.013,96172.0,96171.0,1.31938795]
[1739437647846,0.002,96172.0,96171.0,1.31938795]
[1739437648044,0.002,96172.0,96171.0,1.34238795]
[1739437648703,0.3,96178.0,96177.0,0.280662]
[1739437648866,0.3,96178.0,96177.0,0.430662]
[1739437649930,0.301,96178.0,96177.0,0.430662]
[1739437650089,0.301,96178.0,96177.0,1.30416172]
[1739437650289,0.31,96178.0,96177.0,1.30416172]
[1739437664397,0.46596,96178.0,96177.0,0.87349972]
[1739437664595,0.47181985,96178.0,96177.0,0.87349972]
[1739437665563,0.5743235,96178.0,96177.0,0.87372337]
[1739437666340,0.5643235,96178.0,96177.0,0.87372337]
[1739437666542,0.5863235,96178.0,96177.0,0.87472337]
[1739437666926,0.5793235,96178.0,96177.0,0.87372337]
[1739437667130,0.5643235,96178.0,96177.0,0.87372337]
[1739437667336,0.5793235,96178.0,96177.0,0.87372337]
[1739437667559,0.5863235,96178.0,96177.0,0.00122365]
[1739437668639,0.5713235,96178.0,96177.0,0.00122365]
[1739437669067,0.5643235,96178.0,96177.0,0.00022365]
[1739437669266,0.5713235,96178.0,96177.0,0.00122365]
[1739437669466,0.5853235,96178.0,96177.0,0.00122365]
[1739437669630,0.5853235,96178.0,96177.0,0.00022365]
[1739437669831,0.5923235,96178.0,96177.0,0.00122365]
[1739437670031,0.5783235,96178.0,96177.0,0.00122365]
[1739437670953,0.5923235,96178.0,96177.0,0.00122365]
[1739437673594,0.5643235,96178.0,96177.0,0.00022365]
[1739437673993,0.5843235,96178.0,96177.0,0.00122365]
[1739437677031,0.4283635,96178.0,96177.0,0.00122365]
[1739437677237,0.5843235,96178.0,96177.0,0.00122365]
[1739437680808,0.4283635,96178.0,96177.0,0.00122365]
[1739437681242,0.4283635,96178.0,96177.0,0.15718565]
[1739437681434,0.4283635,96178.0,96177.0,0.00122365]
[1739437681569,0.5843235,96178.0,96177.0,0.00122365]
[1739437682651,0.4283635,96178.0,96177.0,0.00122365]
[1739437682860,0.4283635,96178.0,96177.0,0.32822337]
[1739437683367,0.5843235,96178.0,96177.0,0.32822337]
[1739437687351,0.4283635,96178.0,96177.0,0.32822337]
[1739437687737,0.5843235,96178.0,96177.0,0.32822337]
[1739437691142,0.4283635,96178.0,96177.0,0.32822337]
[1739437691553,0.5843235,96178.0,96177.0,0.32822337]
[1739437691963,0.4283635,96178.0,96177.0,0.48418537]
[1739437692156,0.1283635,96178.0,96177.0,0.48418537]
[1739437692359,0.4283635,96178.0,96177.0,0.32822337]
[1739437692556,0.42250365,96178.0,96177.0,0.48418537]
[1739437692762,0.32585878,96178.0,96177.0,0.48418537]
[1739437694817,0.32585878,96178.0,96177.0,0.56038537]
[1739437695018,0.32,96178.0,96177.0,0.56038537]
[1739437695219,0.3258744,96178.0,96177.0,0.56038537]
[1739437695711,0.3058744,96178.0,96177.0,0.55938537]
[1739437696041,0.3208744,96178.0,96177.0,0.55938537]
[1739437697784,0.3208744,96178.0,96177.0,1.10588537]
[1739437700822,0.3208744,96178.0,96177.0,1.20588537]
[1739437701237,0.315,96178.0,96177.0,1.20588537]
[1739437703765,0.32087424,96178.0,96177.0,1.20588537]
[1739437704183,0.315,96178.0,96177.0,1.20588537]
[1739437712029,0.32157237,96178.0,96177.0,1.20588537]
[1739437712444,0.315,96178.0,96177.0,1.20588537]
[1739437719277,0.015,96178.0,96177.0,1.35588537]
[1739437720063,0.003,96178.0,96177.0,1.35588537]
[1739437720444,0.007,96178.0,96177.0,1.35588537]
[1739437720998,0.004,96178.0,96177.0,1.35588537]
[1739437721184,0.004,96178.0,96177.0,1.35688537]
[1739437721800,0.004,96178.0,96177.0,1.20092337]
[1739437722224,0.01057062,96178.0,96177.0,1.35688537]
[1739437722425,0.004,96178.0,96177.0,1.35688537]
[1739437722635,0.01057062,96178.0,96177.0,1.35688537]
[1739437722825,0.004,96178.0,96177.0,1.35688537]
[1739437723422,0.004,96178.0,96177.0,1.20092337]
[1739437723748,0.004,96178.0,96177.0,1.35688537]
[1739437725545,0.004,96178.0,96177.0,1.20092337]
[1739437725942,0.01057062,96178.0,96177.0,1.20092337]
[1739437726315,0.004,96178.0,96177.0,1.20092337]
[1739437726511,0.01057062,96178.0,96177.0,1.20092337]
[1739437726689,0.004,96178.0,96177.0,1.20092337]
[1739437726922,0.004,96178.0,96177.0,1.35688537]
[1739437741203,0.11388414,96178.0,96177.0,0.97472337]
[1739437741840,0.10988414,96178.0,96177.0,0.97472337]
[1739437742011,0.11588414,96178.0,96177.0,0.97472337]
[1739437742430,0.10988414,96178.0,96177.0,0.97472337]
[1739437742576,0.26584414,96178.0,96177.0,0.97372337]
[1739437742772,0.27184414,96178.0,96177.0,0.97372337]
[1739437742983,0.11588414,96178.0,96177.0,0.97372337]
[1739437743605,0.27184414,96178.0,96177.0,0.97372337]
[1739437745219,0.27184414,96178.0,96177.0,0.42722337]
[1739437745786,0.11588414,96178.0,96177.0,0.42722337]
[1739437746317,0.10988414,96178.0,96177.0,0.42722337]
[1739437746724,0.11788414,96178.0,96177.0,0.42722337]
[1739437747759,0.11888414,96178.0,96177.0,0.42722337]
[1739437748149,0.11088414,96178.0,96177.0,0.42722337]
[1739437748556,0.11788414,96178.0,96177.0,0.42722337]
[1739437749004,0.27384414,96178.0,96177.0,0.42722337]
[1739437752110,0.11788414,96178.0,96177.0,0.42722337]
[1739437752319,0.27384414,96178.0,96177.0,0.42722337]
[1739437755657,0.11788414,96178.0,96177.0,0.42722337]
[1739437755858,0.27384414,96178.0,96177.0,0.42722337]
[1739437756705,0.11788414,96178.0,96177.0,0.58318537]
[1739437756903,0.11788414,96178.0,96177.0,0.42722337]
[1739437762637,0.11788414,96178.0,96177.0,0.58318537]
[1739437762638,0.01538049,96178.0,96177.0,0.58318537]
[1739437762842,0.01538049,96178.0,96177.0,0.42722337]
[1739437764488,0.01538049,96178.0,96177.0,0.58318537]
[1739437765656,0.01538049,96178.0,96177.0,0.42722337]
[1739437766268,0.008,96178.0,96177.0,0.42722337]
[1739437766900,0.01535119,96178.0,96177.0,0.42722337]
[1739437767109,0.008,96178.0,96177.0,0.42722337]
[1739437767347,0.01535119,96178.0,96177.0,0.42722337]
[1739437769633,0.01535119,96178.0,96177.0,0.58318537]
[1739437769834,0.01535119,96178.0,96177.0,0.42722337]
[1739437770083,0.01177069,96178.0,96177.0,0.42722337]
[1739437770457,0.0044195,96178.0,96177.0,0.42722337]
[1739437771649,0.0044195,96178.0,96177.0,0.58318537]
[1739437771650,0.01178629,96178.0,96177.0,0.58318537]
[1739437771810,0.0044195,96178.0,96177.0,0.42722337]
[1739437773923,0.0044195,96178.0,96177.0,0.58318537]
[1739437774118,0.0044195,96178.0,96177.0,0.42722337]
[1739437775079,0.01178629,96178.0,96177.0,0.42722337]
[1739437775288,0.0044195,96178.0,96177.0,0.42722337]
[1739437775453,0.01178629,96178.0,96177.0,0.65622337]
[1739437775654,0.0044195,96178.0,96177.0,0.65622337]
[1739437775862,0.01077568,96178.0,96177.0,0.70292337]
[1739437776065,0.0044195,96178.0,96177.0,0.70292337]
[1739437776443,0.0044195,96178.0,96177.0,0.72383619]
[1739437776664,0.0001065,96183.0,96182.0,0.383754]
[1739437778464,0.0051065,96183.0,96182.0,0.383754]
[1739437779500,0.0001065,96183.0,96182.0,0.383754]
[1739437780459,0.0041065,96183.0,96182.0,0.384754]
[1739437781023,0.0041065,96183.0,96182.0,1.25825372]
[1739437784501,0.0001065,96183.0,96182.0,1.25725372]
[1739437784733,0.0021065,96183.0,96182.0,1.25725372]
[1739437784974,0.0021065,96183.0,96182.0,1.32655372]
[1739437788986,0.0021065,96183.0,96182.0,1.42905737]
[1739437789997,0.0001065,96183.0,96182.0,1.42805737]
[1739437790241,0.0021065,96183.0,96182.0,1.43805737]
[1739437810590,0.0021065,96183.0,96182.0,1.47036598]
[1739437812114,0.0021065,96183.0,96182.0,1.43805737]
[1739437812326,0.0021065,96183.0,96182.0,1.36786209]
[1739437812551,0.0021065,96183.0,96182.0,1.32256209]
[1739437812747,0.0021065,96183.0,96182.0,1.24476209]
[1739437812997,0.0021065,96183.0,96182.0,1.21245372]
[1739437815791,0.0021065,96183.0,96182.0,1.24477528]
[1739437830881,0.0021065,96183.0,96182.0,1.22177528]
[1739437831305,0.0021065,96183.0,96182.0,1.18945372]
[1739437831506,0.0021065,96183.0,96182.0,0.64295372]
[1739437833669,0.0021065,96183.0,96182.0,0.67530202]
[1739437833890,0.0021065,96183.0,96182.0,0.64295372]
[1739437851181,0.0021065,96183.0,96182.0,0.74795372]
[1739437851397,0.0021065,96183.0,96182.0,0.79525372]
[1739437851583,0.0021065,96183.0,96182.0,0.82758675]
[1739437854129,0.0021065,96183.0,96182.0,0.79525372]
[1739437855231,0.0021065,96183.0,96182.0,1.34175372]
[1739437855434,0.0021065,96183.0,96182.0,1.37409773]
[1739437863022,0.0021065,96183.0,96182.0,1.24479773]
[1739437863195,0.0021065,96183.0,96182.0,1.21245372]
[1739437863796,0.0021065,96183.0,96182.0,1.24479647]
[1739437864049,0.0021065,96183.0,96182.0,1.21245372]
[1739437864464,0.0021065,96183.0,96182.0,1.24479717]
[1739437864820,0.0021065,96183.0,96182.0,1.18945372]
[1739437867043,0.0021065,96183.0,96182.0,0.64295372]
[1739437868284,0.0021065,96183.0,96182.0,0.67530922]
[1739437868495,0.0021065,96183.0,96182.0,0.64295372]
[1739437868663,0.0021065,96183.0,96182.0,0.67530902]
[1739437872509,0.0808,96207.0,96182.0,0.51935502]
[1739437872740,0.0808,96207.0,96199.0,0.155926]
[1739437873133,0.0808,96207.0,96196.0,0.207908]
[1739437873134,0.01140109,96205.0,96204.0,0.155918]
[1739437873339,0.11400074,96205.0,96204.0,0.155918]
[1739437873541,0.12143457,96205.0,96204.0,0.155918]
[1739437874033,0.12045173,96205.0,96204.0,0.155918]
[1739437875009,0.42045173,96205.0,96204.0,0.155918]
[1739437875621,0.31794808,96205.0,96204.0,0.155918]
[1739437875825,0.32694808,96205.0,96204.0,0.156918]
[1739437876719,0.32694808,96205.0,96204.0,0.001]
[1739437876898,0.32694808,96205.0,96204.0,0.156918]
[1739437877077,0.66396873,96205.0,96204.0,0.001]
[1739437877648,0.50805173,96205.0,96204.0,0.001]
[1739437878251,0.42945173,96205.0,96204.0,0.156918]
[1739437878470,0.42945173,96205.0,96204.0,0.001]
[1739437879004,0.42945173,96205.0,96204.0,0.156918]
[1739437881168,0.32694808,96205.0,96204.0,0.156918]
[1739437883222,0.02694808,96205.0,96204.0,0.63391772]
[1739437883424,0.01951425,96205.0,96204.0,0.68241772]
[1739437884857,0.01051425,96205.0,96204.0,0.68141772]
[1739437885185,0.01751425,96205.0,96204.0,0.68241772]
[1739437886373,0.01751425,96205.0,96204.0,0.68264137]
[1739437886547,0.01762075,96205.0,96204.0,0.68264137]
[1739437887091,0.01762075,96205.0,96204.0,0.70564137]
[1739437887954,0.01062075,96205.0,96204.0,1.25114137]
[1739437888384,0.01762075,96205.0,96204.0,1.25214137]
[1739437888947,0.01062075,96205.0,96204.0,1.25114137]
[1739437889142,0.01062075,96205.0,96204.0,1.25314137]
[1739437891778,0.01062075,96205.0,96204.0,1.33294137]
[1739437893326,0.01062075,96205.0,96204.0,1.43544502]
[1739437896396,7.5e-07,96214.0,96213.0,0.305904]
[1739437896595,7.5e-07,96214.0,96213.0,0.41509771]
[1739437897026,7.5e-07,96214.0,96213.0,1.43760108]
[1739437897630,7.5e-07,96214.0,96213.0,1.43860108]
[1739437897828,0.00700075,96214.0,96213.0,1.43860108]
[1739437898237,7.5e-07,96214.0,96213.0,1.43760108]
[1739437898443,0.00100075,96214.0,96213.0,1.45260108]
[1739437899252,0.00100075,96214.0,96213.0,1.45960108]
[1739437900398,0.00025222,96214.0,96213.0,1.45960108]
[1739437905367,2.2e-07,96214.0,96213.0,1.45960108]
[1739437909839,7e-05,96222.0,96221.0,0.430991]
[1739437909840,2.2e-07,96222.0,96221.0,0.430991]
[1739437910021,2.2e-07,96222.0,96221.0,0.53349465]
[1739437910542,0.3,96237.0,96225.0,0.178884]
[1739437910750,0.3,96237.0,96225.0,1.21381648]
[1739437911085,0.3,96237.0,96225.0,1.21277743]
[1739437912813,0.3,96237.0,96225.0,1.21977743]
[1739437913397,1.444e-05,96226.0,96225.0,1.21977743]
[1739437913580,0.00401444,96226.0,96225.0,1.21977743]
[1739437914164,1.444e-05,96226.0,96225.0,1.06977743]
[1739437914379,0.00101444,96226.0,96225.0,1.23477743]
[1739437915208,0.00101444,96226.0,96225.0,1.25595774]
[1739437915500,0.3,96237.0,96236.0,0.254766]
[1739437915698,0.30043974,96237.0,96236.0,0.41515971]
[1739437915928,0.30043974,96237.0,96236.0,0.42343971]
[1739437916904,0.30043974,96237.0,96236.0,0.42643971]
[1739437917630,0.30043974,96237.0,96236.0,1.29993943]
[1739437917808,0.30043974,96237.0,96236.0,1.29165943]
[1739437918807,0.00043974,96237.0,96236.0,1.29165943]
[1739437919735,0.00043974,96237.0,96236.0,1.33955943]
[1739437921803,7.4e-07,96237.0,96236.0,1.47428831]
[1739437922152,0.00010724,96237.0,96236.0,1.47428831]
[1739437924364,0.00010724,96237.0,96236.0,1.24798466]
[1739437924660,0.00010724,96237.0,96236.0,0.71575971]
[1739437925060,0.00620221,96237.0,96236.0,0.71575971]
[1739437925204,0.00010724,96237.0,96236.0,0.71575971]
[1739437925413,0.00620218,96237.0,96236.0,0.86575971]
[1739437925610,0.00010724,96237.0,96236.0,0.86575971]
[1739437925859,0.00620221,96237.0,96236.0,0.86575971]
[1739437926028,0.00010724,96237.0,96236.0,0.86575971]
[1739437926230,0.00620221,96237.0,96236.0,0.86575971]
[1739437927674,0.00620221,96237.0,96236.0,0.88875971]
[1739437929251,0.00620221,96237.0,96236.0,0.99126336]
[1739437929450,0.00010724,96237.0,96236.0,0.99126336]
[1739437929770,0.00010724,96237.0,96236.0,1.0235108]
[1739437930787,0.00010724,96237.0,96236.0,1.35051052]
[1739437934102,2.4e-07,96237.0,96236.0,1.42591052]
[1739437934762,2.4e-07,96237.0,96236.0,1.42613417]
[1739437935560,2.4e-07,96237.0,96236.0,1.42313417]
[1739437935794,2.4e-07,96237.0,96236.0,1.43013417]
[1739437936002,0.00100024,96237.0,96236.0,1.44513417]
[1739437936408,2.4e-07,96237.0,96236.0,1.43013417]
[1739437936627,2.4e-07,96237.0,96236.0,1.44513417]
[1739437936837,0.00100024,96237.0,96236.0,1.44513417]
[1739437941453,2.4e-07,96237.0,96236.0,1.44513417]
[1739437941693,0.0004,96249.0,96248.0,0.305847]
[1739437941919,0.00053187,96249.0,96248.0,0.33924071]
[1739437942175,0.00666856,96249.0,96248.0,0.33924071]
[1739437942373,0.00053187,96249.0,96248.0,0.33924071]
[1739437943186,0.00053187,96249.0,96248.0,0.35174873]
[1739437944301,0.00053187,96249.0,96248.0,0.3840166]
[1739437945680,0.00053187,96249.0,96248.0,0.40519383]
[1739437946852,0.00053187,96249.0,96248.0,0.07634683]
[1739437947072,0.10407716,96249.0,96248.0,0.002]
[1739437947279,0.10952312,96249.0,96248.0,0.002]
[1739437947509,0.30701947,96249.0,96248.0,0.157847]
[1739437948179,0.30701947,96249.0,96247.0,0.15]
[1739437948365,0.31001947,96249.0,96247.0,0.15]
[1739437948960,0.30701947,96249.0,96247.0,0.305848]
[1739437949161,0.30701947,96249.0,96248.0,0.305847]
[1739437949362,0.31501947,96249.0,96248.0,0.306847]
[1739437949826,0.30701947,96249.0,96248.0,0.305847]
[1739437950111,0.31501947,96249.0,96248.0,0.305847]
[1739437951968,0.30701947,96249.0,96248.0,0.305847]
[1739437952121,0.31501947,96249.0,96248.0,0.306847]
[1739437956304,0.31501947,96249.0,96248.0,0.63384672]
[1739437957000,0.31501947,96249.0,96248.0,0.47799972]
[1739437958413,0.31501947,96249.0,96248.0,0.63384672]
[1739437959192,0.31512597,96249.0,96248.0,0.63384672]
[1739437961165,0.31512597,96249.0,96248.0,0.58924672]
[1739437964430,0.31512597,96249.0,96248.0,0.61224672]
[1739437965022,0.31512597,96249.0,96248.0,0.58924672]
[1739437974240,0.31512597,96249.0,96248.0,0.61224672]
[1739437976076,0.31512597,96249.0,96248.0,0.58924672]
[1739437977507,0.31512597,96249.0,96248.0,0.43339972]
[1739437977738,0.31512597,96249.0,96248.0,0.1064]
[1739437978055,0.31512597,96249.0,96248.0,0.262247]
[1739437982494,0.31512597,96249.0,96248.0,0.26247065]
[1739437982851,0.31512597,96249.0,96248.0,0.10662365]
[1739437983057,0.31512597,96249.0,96248.0,0.58947037]
[1739437984509,0.31512597,96249.0,96248.0,0.32822337]
[1739437984737,0.31512597,96249.0,96248.0,0.48407037]
[1739437985136,0.31512597,96249.0,96248.0,0.32822337]
[1739437985461,0.31525155,96249.0,96248.0,0.32822337]
[1739437986020,0.47109655,96249.0,96248.0,0.32822337]
[1739437986178,0.31525155,96249.0,96248.0,0.32822337]
[1739437987231,0.4177552,96249.0,96248.0,0.32822337]
[1739437988595,0.4177552,96249.0,96248.0,0.48407037]
[1739437988743,0.4177552,96249.0,96248.0,0.32822337]
[1739437990470,0.5736002,96249.0,96248.0,0.32822337]
[1739437991583,0.6490002,96249.0,96248.0,0.00122365]
[1739437991819,0.6983002,96249.0,96248.0,0.00122365]
[1739437993490,0.6903002,96249.0,96248.0,0.00022365]
[1739437993907,0.7053002,96249.0,96248.0,0.00122365]
[1739437994276,0.6903002,96249.0,96248.0,0.00022365]
[1739437994475,0.6903002,96249.0,96248.0,0.00122365]
[1739437994707,0.7053002,96249.0,96248.0,0.00122365]
[1739438019736,0.6299002,96249.0,96248.0,0.00122365]
[1739438019939,0.5806002,96249.0,96248.0,0.00122365]
[1739438044846,0.68022866,96249.0,96248.0,0.00122365]
[1739438045061,0.76762866,96249.0,96248.0,0.00122365]
[1739438045240,0.81282866,96249.0,96248.0,0.00122365]
[1739438045426,0.97282866,96249.0,96248.0,6.5e-07]
[1739438045853,0.536263,96238.0,96237.0,0.00022365]
[1739438046070,0.63876665,96238.0,96237.0,0.00022365]
[1739438046243,0.64524147,96238.0,96237.0,0.00022365]
[1739438047449,0.69974147,96238.0,96237.0,0.00022365]
[1739438047648,0.84974147,96238.0,96237.0,0.00022365]